[Event "Early-Titled-Tuesday-Blitz-October-03-2023"]
[Site "Chess.com"]
[Date "2023.10.03"]
[Round "8"]
[White "pankajfm"]
[Black "campochess"]
[Result "1/2-1/2"]
[WhiteElo "2105"]
[BlackElo "2158"]
[TimeControl "180+1"]
[EndTime "9:30:12 PDT"]
[Termination "Game drawn - insufficient material"]

1. e4 {[%clk 0:03:00.9]} 1... c5 {[%clk 0:02:59.9]} 2. c3 {[%clk 0:03:00]} 2...
e6 {[%clk 0:02:58.9]} 3. d4 {[%clk 0:02:59.7]} 3... cxd4 {[%clk 0:02:59]} 4.
cxd4 {[%clk 0:02:59.3]} 4... d6 {[%clk 0:02:59.1]} 5. Nc3 {[%clk 0:02:58.7]}
5... Ne7 {[%clk 0:02:59.1]} 6. Bg5 {[%clk 0:02:57]} 6... a6 {[%clk 0:02:57.6]}
7. Nf3 {[%clk 0:02:55.5]} 7... Nd7 {[%clk 0:02:57.4]} 8. Bc4 {[%clk 0:02:55.6]}
8... b5 {[%clk 0:02:53.2]} 9. Bb3 {[%clk 0:02:55.6]} 9... Bb7 {[%clk 0:02:53.4]}
10. O-O {[%clk 0:02:55]} 10... b4 {[%clk 0:02:49]} 11. Ne2 {[%clk 0:02:31]}
11... Bxe4 {[%clk 0:02:48.7]} 12. Nf4 {[%clk 0:02:31.7]} 12... h6 {[%clk
0:02:33.6]} 13. Bxe6 {[%clk 0:02:04.9]} 13... fxe6 {[%clk 0:02:21.8]} 14. Nxe6
{[%clk 0:02:05.8]} 14... Qb6 {[%clk 0:01:55.4]} 15. Rc1 {[%clk 0:02:01.4]} 15...
Rc8 {[%clk 0:01:32.4]} 16. Bxe7 {[%clk 0:02:00.6]} 16... Rxc1 {[%clk 0:01:31.9]}
17. Qxc1 {[%clk 0:02:00.8]} 17... Kxe7 {[%clk 0:01:24]} 18. Nf4 {[%clk
0:01:43.1]} 18... Kf7 {[%clk 0:01:02.5]} 19. Re1 {[%clk 0:01:39.5]} 19... Nf6
{[%clk 0:00:59.2]} 20. Rxe4 {[%clk 0:01:25.8]} 20... Nxe4 {[%clk 0:00:58.1]} 21.
Qc4+ {[%clk 0:01:26.5]} 21... Ke8 {[%clk 0:00:45.9]} 22. Qe6+ {[%clk 0:01:21.1]}
22... Be7 {[%clk 0:00:43.5]} 23. Qxe4 {[%clk 0:01:19]} 23... Kd8 {[%clk
0:00:40.8]} 24. Qxe7+ {[%clk 0:01:18.6]} 24... Kxe7 {[%clk 0:00:39.6]} 25. Nd5+
{[%clk 0:01:19.5]} 25... Ke6 {[%clk 0:00:39.5]} 26. Nxb6 {[%clk 0:01:20.4]}
26... Rb8 {[%clk 0:00:34.4]} 27. d5+ {[%clk 0:01:20.8]} 27... Kf5 {[%clk
0:00:32.4]} 28. Nc4 {[%clk 0:01:21.1]} 28... Rc8 {[%clk 0:00:30.3]} 29. b3
{[%clk 0:01:21.1]} 29... a5 {[%clk 0:00:28.5]} 30. Kf1 {[%clk 0:01:19.9]} 30...
Rd8 {[%clk 0:00:21.4]} 31. Ke2 {[%clk 0:01:19.4]} 31... Ke4 {[%clk 0:00:21.2]}
32. Nxa5 {[%clk 0:01:11.3]} 32... Kxd5 {[%clk 0:00:20.6]} 33. Nd2 {[%clk
0:01:10.1]} 33... Ra8 {[%clk 0:00:19.9]} 34. Ndc4 {[%clk 0:01:10.8]} 34... Kc5
{[%clk 0:00:19.6]} 35. Nb7+ {[%clk 0:01:08.7]} 35... Kd4 {[%clk 0:00:16.3]} 36.
Nbxd6 {[%clk 0:01:09.4]} 36... Rxa2+ {[%clk 0:00:14.9]} 37. Kf3 {[%clk
0:01:10.2]} 37... Kc3 {[%clk 0:00:14.7]} 38. Ne4+ {[%clk 0:00:37]} 38... Kxb3
{[%clk 0:00:14.5]} 39. Ne3 {[%clk 0:00:37.7]} 39... Ra3 {[%clk 0:00:13.5]} 40.
Nc5+ {[%clk 0:00:34.1]} 40... Ka2 {[%clk 0:00:12.5]} 41. Ke4 {[%clk 0:00:33]}
41... b3 {[%clk 0:00:12.5]} 42. Nc4 {[%clk 0:00:32.6]} 42... b2 {[%clk
0:00:11.1]} 43. Nxb2 {[%clk 0:00:22.5]} 43... Kxb2 {[%clk 0:00:08.4]} 44. f4
{[%clk 0:00:23.1]} 44... Ra2 {[%clk 0:00:07.2]} 45. g4 {[%clk 0:00:21.4]} 45...
Kc3 {[%clk 0:00:07.4]} 46. h4 {[%clk 0:00:21.5]} 46... Kc4 {[%clk 0:00:07.6]}
47. Ne6 {[%clk 0:00:20.5]} 47... g6 {[%clk 0:00:07.3]} 48. g5 {[%clk 0:00:18.6]}
48... Rh2 {[%clk 0:00:07.1]} 49. gxh6 {[%clk 0:00:17]} 49... Rxh4 {[%clk
0:00:07.2]} 50. Nf8 {[%clk 0:00:15.8]} 50... Rxh6 {[%clk 0:00:07.1]} 51. Ke5
{[%clk 0:00:16.4]} 51... Kc5 {[%clk 0:00:06.4]} 52. Kf6 {[%clk 0:00:16.7]} 52...
Rh4 {[%clk 0:00:06.5]} 53. Nxg6 {[%clk 0:00:16.4]} 53... Rxf4+ {[%clk
0:00:06.7]} 54. Nxf4 {[%clk 0:00:16.3]} 1/2-1/2

[Event "Early-Titled-Tuesday-Blitz-October-03-2023"]
[Site "Chess.com"]
[Date "2023.10.03"]
[Round "8"]
[White "ChessQueen"]
[Black "elmusmolamas"]
[Result "1-0"]
[WhiteElo "2723"]
[BlackElo "2529"]
[TimeControl "180+1"]
[EndTime "9:30:15 PDT"]
[Termination "ChessQueen won by resignation"]

1. d4 {[%clk 0:03:00.9]} 1... d5 {[%clk 0:02:54.9]} 2. Nf3 {[%clk 0:03:00.4]}
2... Nf6 {[%clk 0:02:54.1]} 3. c4 {[%clk 0:03:00.5]} 3... c6 {[%clk 0:02:52.8]}
4. cxd5 {[%clk 0:02:57.9]} 4... cxd5 {[%clk 0:02:53.7]} 5. Nc3 {[%clk
0:02:58.2]} 5... e6 {[%clk 0:02:46.7]} 6. Bf4 {[%clk 0:02:54.3]} 6... Bd6 {[%clk
0:02:42.9]} 7. g3 {[%clk 0:02:50.1]} 7... O-O {[%clk 0:02:41.6]} 8. e3 {[%clk
0:02:46.6]} 8... b6 {[%clk 0:02:39.9]} 9. Bd3 {[%clk 0:02:38.7]} 9... Ba6 {[%clk
0:02:37.8]} 10. Nb5 {[%clk 0:02:38.3]} 10... Bxf4 {[%clk 0:02:31.9]} 11. gxf4
{[%clk 0:02:37]} 11... Ne4 {[%clk 0:02:21.5]} 12. Qe2 {[%clk 0:02:21.7]} 12...
Nc6 {[%clk 0:02:08.8]} 13. a3 {[%clk 0:02:17.1]} 13... Na5 {[%clk 0:02:07]} 14.
O-O {[%clk 0:02:08.3]} 14... f6 {[%clk 0:02:00.8]} 15. Kh1 {[%clk 0:02:07.2]}
15... Rf7 {[%clk 0:01:59.3]} 16. Rg1 {[%clk 0:02:04]} 16... Rc8 {[%clk
0:01:59.9]} 17. Rg2 {[%clk 0:01:59.1]} 17... Kh8 {[%clk 0:01:53.1]} 18. Rag1
{[%clk 0:01:42.7]} 18... Nb3 {[%clk 0:01:53.1]} 19. Bxe4 {[%clk 0:01:28.5]}
19... dxe4 {[%clk 0:01:52.1]} 20. Nh4 {[%clk 0:01:28.8]} 20... f5 {[%clk
0:01:05.4]} 21. Qh5 {[%clk 0:01:23.8]} 21... Kg8 {[%clk 0:01:04.3]} 22. Qxf7+
{[%clk 0:01:11]} 22... Kxf7 {[%clk 0:01:05.2]} 23. Rxg7+ {[%clk 0:01:11.2]}
23... Kf6 {[%clk 0:01:04]} 24. Rxh7 {[%clk 0:01:11.5]} 24... Qg8 {[%clk
0:00:38.6]} 25. Rh6+ {[%clk 0:00:41.7]} 25... Ke7 {[%clk 0:00:37]} 26. Rxg8
{[%clk 0:00:41.3]} 26... Rxg8 {[%clk 0:00:37.9]} 27. Nc3 {[%clk 0:00:37.3]}
27... Nc1 {[%clk 0:00:29.2]} 28. Rg6 {[%clk 0:00:29.2]} 28... Rh8 {[%clk
0:00:25.8]} 29. Ng2 {[%clk 0:00:23]} 29... Kf7 {[%clk 0:00:19.9]} 30. Rg5 {[%clk
0:00:18.4]} 30... Ne2 {[%clk 0:00:20.6]} 31. Nxe2 {[%clk 0:00:16.6]} 31... Bxe2
{[%clk 0:00:21.5]} 32. d5 {[%clk 0:00:16.4]} 32... Bf3 {[%clk 0:00:18.7]} 33.
dxe6+ {[%clk 0:00:16]} 33... Kxe6 {[%clk 0:00:19.6]} 34. Kg1 {[%clk 0:00:15.2]}
34... Rc8 {[%clk 0:00:17.3]} 35. h4 {[%clk 0:00:15.5]} 35... Rh8 {[%clk
0:00:14.3]} 36. Rg7 {[%clk 0:00:13.6]} 36... Bxg2 {[%clk 0:00:09]} 37. Kxg2
{[%clk 0:00:13.3]} 37... Rxh4 {[%clk 0:00:09.9]} 38. Rxa7 {[%clk 0:00:13.1]}
38... Kd5 {[%clk 0:00:10.4]} 39. Re7 {[%clk 0:00:12.4]} 39... Kc4 {[%clk
0:00:10]} 40. Re5 {[%clk 0:00:12.1]} 40... Rh5 {[%clk 0:00:10.1]} 41. a4 {[%clk
0:00:11.5]} 41... Kb3 {[%clk 0:00:06]} 42. Rb5+ {[%clk 0:00:11.8]} 42... Kxa4
{[%clk 0:00:06.8]} 43. Rxb6 {[%clk 0:00:12.4]} 43... Rh7 {[%clk 0:00:05.8]} 44.
Kf1 {[%clk 0:00:11.3]} 44... Ka5 {[%clk 0:00:03.5]} 45. Rb8 {[%clk 0:00:10.8]}
45... Rc7 {[%clk 0:00:03.4]} 46. Re8 {[%clk 0:00:10.1]} 46... Kb4 {[%clk
0:00:02.8]} 47. Re5 {[%clk 0:00:08.7]} 47... Rf7 {[%clk 0:00:03.6]} 48. Ke2
{[%clk 0:00:08.8]} 48... Kb3 {[%clk 0:00:04.2]} 49. Rb5+ {[%clk 0:00:09.1]}
49... Kc2 {[%clk 0:00:05]} 50. Rb8 {[%clk 0:00:09.6]} 50... Rd7 {[%clk
0:00:05.3]} 51. b4 {[%clk 0:00:09.6]} 51... Rd2+ {[%clk 0:00:05.4]} 52. Kf1
{[%clk 0:00:10.3]} 52... Rd1+ {[%clk 0:00:06.1]} 53. Kg2 {[%clk 0:00:10.5]}
53... Kd3 {[%clk 0:00:03.7]} 54. Rd8+ {[%clk 0:00:10.4]} 54... Ke2 {[%clk
0:00:04.4]} 55. Rxd1 {[%clk 0:00:10.7]} 55... Kxd1 {[%clk 0:00:05.3]} 56. b5
{[%clk 0:00:11.1]} 1-0

[Event "Early-Titled-Tuesday-Blitz-October-03-2023"]
[Site "Chess.com"]
[Date "2023.10.03"]
[Round "8"]
[White "BeautiFullMindChess"]
[Black "brm72"]
[Result "0-1"]
[WhiteElo "2377"]
[BlackElo "2507"]
[TimeControl "180+1"]
[EndTime "9:30:17 PDT"]
[Termination "brm72 won on time"]

1. e4 {[%clk 0:03:00.9]} 1... c5 {[%clk 0:03:00]} 2. Nf3 {[%clk 0:03:00]} 2...
d6 {[%clk 0:03:00.5]} 3. Bc4 {[%clk 0:02:56.1]} 3... Nc6 {[%clk 0:02:57.6]} 4.
d3 {[%clk 0:02:56.3]} 4... e6 {[%clk 0:02:57.3]} 5. c3 {[%clk 0:02:56.1]} 5...
d5 {[%clk 0:02:56.5]} 6. exd5 {[%clk 0:02:56]} 6... exd5 {[%clk 0:02:57.4]} 7.
Bb5 {[%clk 0:02:54.4]} 7... Be7 {[%clk 0:02:54.3]} 8. O-O {[%clk 0:02:53.1]}
8... Nf6 {[%clk 0:02:54]} 9. Ne5 {[%clk 0:02:36.4]} 9... Bd7 {[%clk 0:02:43.2]}
10. Bxc6 {[%clk 0:02:26.5]} 10... Bxc6 {[%clk 0:02:41.3]} 11. Nxc6 {[%clk
0:02:25]} 11... bxc6 {[%clk 0:02:42.2]} 12. c4 {[%clk 0:02:07.8]} 12... O-O
{[%clk 0:02:41]} 13. Nc3 {[%clk 0:02:03.1]} 13... h6 {[%clk 0:02:39]} 14. b3
{[%clk 0:02:01.6]} 14... Qd7 {[%clk 0:02:32.5]} 15. Re1 {[%clk 0:02:00.6]} 15...
Rfe8 {[%clk 0:02:31]} 16. Qf3 {[%clk 0:01:55.6]} 16... Rad8 {[%clk 0:02:26.8]}
17. Ba3 {[%clk 0:01:49.5]} 17... Bf8 {[%clk 0:02:12.2]} 18. Na4 {[%clk
0:01:47.9]} 18... dxc4 {[%clk 0:01:52.9]} 19. dxc4 {[%clk 0:01:47.6]} 19... Qd2
{[%clk 0:01:52.6]} 20. Red1 {[%clk 0:01:19.6]} 20... Qa5 {[%clk 0:01:41.9]} 21.
h3 {[%clk 0:00:50.8]} 21... Rxd1+ {[%clk 0:01:36.7]} 22. Rxd1 {[%clk 0:00:41.8]}
22... Re1+ {[%clk 0:01:35.9]} 23. Kh2 {[%clk 0:00:42.4]} 23... Qc7+ {[%clk
0:01:14.7]} 24. g3 {[%clk 0:00:38.5]} 24... Rxd1 {[%clk 0:01:10.7]} 25. Qxd1
{[%clk 0:00:39.4]} 25... Ne4 {[%clk 0:01:08.8]} 26. Kg2 {[%clk 0:00:27.5]} 26...
Qe5 {[%clk 0:01:00.1]} 27. Bb2 {[%clk 0:00:20.6]} 27... Qg5 {[%clk 0:00:49.5]}
28. Qd3 {[%clk 0:00:15.8]} 28... f5 {[%clk 0:00:46.2]} 29. h4 {[%clk 0:00:13.1]}
29... Qg6 {[%clk 0:00:36.7]} 30. Nc3 {[%clk 0:00:10.4]} 30... Bd6 {[%clk
0:00:32]} 31. Ne2 {[%clk 0:00:09]} 31... f4 {[%clk 0:00:26.1]} 32. a3 {[%clk
0:00:07.2]} 32... fxg3 {[%clk 0:00:21.7]} 33. fxg3 {[%clk 0:00:08.1]} 33... Qf5
{[%clk 0:00:20]} 34. Qf3 {[%clk 0:00:06.1]} 34... Qxf3+ {[%clk 0:00:15.5]} 35.
Kxf3 {[%clk 0:00:07]} 35... Nd2+ {[%clk 0:00:16.4]} 36. Kg4 {[%clk 0:00:04.1]}
36... Nxb3 {[%clk 0:00:16.4]} 37. Nc3 {[%clk 0:00:03.6]} 37... Nd2 {[%clk
0:00:15.7]} 38. Bc1 {[%clk 0:00:02.8]} 38... Nxc4 {[%clk 0:00:15.7]} 39. Ne4
{[%clk 0:00:02.3]} 39... Be5 {[%clk 0:00:15.7]} 40. Kf5 {[%clk 0:00:02.7]} 40...
Bd4 {[%clk 0:00:15.1]} 41. g4 {[%clk 0:00:02.9]} 41... Kf7 {[%clk 0:00:13.1]}
42. g5 {[%clk 0:00:03]} 42... g6+ {[%clk 0:00:13.1]} 43. Kf4 {[%clk 0:00:03.1]}
43... Be5+ {[%clk 0:00:11.6]} 44. Kg4 {[%clk 0:00:03.1]} 44... h5+ {[%clk
0:00:11.8]} 45. Kf3 {[%clk 0:00:04]} 45... Bd4 {[%clk 0:00:11.2]} 46. a4 {[%clk
0:00:03]} 46... Ke6 {[%clk 0:00:11.4]} 47. Nd2 {[%clk 0:00:02.3]} 47... Ne5+
{[%clk 0:00:10.1]} 48. Ke4 {[%clk 0:00:02.2]} 48... Ng4 {[%clk 0:00:08.1]} 49.
Nf3 {[%clk 0:00:02.2]} 49... Bf2 {[%clk 0:00:08.3]} 50. Ba3 {[%clk 0:00:02.2]}
50... Kd6 {[%clk 0:00:08.1]} 0-1

[Event "Early-Titled-Tuesday-Blitz-October-03-2023"]
[Site "Chess.com"]
[Date "2023.10.03"]
[Round "8"]
[White "deribas12345"]
[Black "RobertoJBM"]
[Result "1-0"]
[WhiteElo "2593"]
[BlackElo "2783"]
[TimeControl "180+1"]
[EndTime "9:30:18 PDT"]
[Termination "deribas12345 won on time"]

1. d4 {[%clk 0:02:59.7]} 1... d5 {[%clk 0:03:00]} 2. c4 {[%clk 0:02:56.3]} 2...
c6 {[%clk 0:02:59.4]} 3. Nf3 {[%clk 0:02:51.5]} 3... Nf6 {[%clk 0:02:58.6]} 4.
g3 {[%clk 0:02:51.6]} 4... dxc4 {[%clk 0:02:58.1]} 5. Bg2 {[%clk 0:02:51.8]}
5... b5 {[%clk 0:02:58]} 6. O-O {[%clk 0:02:51.5]} 6... Bb7 {[%clk 0:02:57.8]}
7. a4 {[%clk 0:02:51.6]} 7... a6 {[%clk 0:02:57.6]} 8. Ne5 {[%clk 0:02:50.6]}
8... e6 {[%clk 0:02:54.6]} 9. b3 {[%clk 0:02:44]} 9... cxb3 {[%clk 0:02:47.3]}
10. Qxb3 {[%clk 0:02:43.9]} 10... Be7 {[%clk 0:02:45.8]} 11. Nc3 {[%clk
0:02:38.9]} 11... Nd5 {[%clk 0:02:28.5]} 12. axb5 {[%clk 0:02:26.6]} 12... cxb5
{[%clk 0:02:23.4]} 13. Nxb5 {[%clk 0:01:35.2]} 13... axb5 {[%clk 0:02:01.1]} 14.
Qxb5+ {[%clk 0:01:33.7]} 14... Nd7 {[%clk 0:02:00.9]} 15. Bd2 {[%clk 0:01:20.9]}
15... Rb8 {[%clk 0:01:08.1]} 16. Ba5 {[%clk 0:01:11.8]} 16... Ba8 {[%clk
0:01:07.5]} 17. Bxd8 {[%clk 0:01:08.8]} 17... Rxb5 {[%clk 0:01:07]} 18. Rxa8
{[%clk 0:00:58.5]} 18... Bxd8 {[%clk 0:01:02]} 19. Nc6 {[%clk 0:00:41.7]} 19...
O-O {[%clk 0:00:59]} 20. Rxd8 {[%clk 0:00:34.5]} 20... Rxd8 {[%clk 0:00:58]} 21.
Nxd8 {[%clk 0:00:35.4]} 21... Nc3 {[%clk 0:00:47.7]} 22. Bf3 {[%clk 0:00:34.2]}
22... Rb2 {[%clk 0:00:41.1]} 23. Rc1 {[%clk 0:00:31]} 23... Nxe2+ {[%clk
0:00:29.6]} 24. Bxe2 {[%clk 0:00:30.2]} 24... Rxe2 {[%clk 0:00:30.5]} 25. Rc8
{[%clk 0:00:29.8]} 25... Nf8 {[%clk 0:00:30]} 26. Nc6 {[%clk 0:00:26.7]} 26...
g6 {[%clk 0:00:29.4]} 27. Ne5 {[%clk 0:00:25.1]} 27... Kg7 {[%clk 0:00:14.3]}
28. Rc7 {[%clk 0:00:25.2]} 28... Rd2 {[%clk 0:00:08.1]} 29. Rxf7+ {[%clk
0:00:25.1]} 29... Kg8 {[%clk 0:00:08.6]} 30. Rf4 {[%clk 0:00:26]} 30... Kg7
{[%clk 0:00:08.1]} 31. h4 {[%clk 0:00:24.6]} 31... h6 {[%clk 0:00:08.1]} 32. Kf1
{[%clk 0:00:23.7]} 32... g5 {[%clk 0:00:07.5]} 33. hxg5 {[%clk 0:00:23.8]} 33...
hxg5 {[%clk 0:00:08.4]} 34. Re4 {[%clk 0:00:19.4]} 34... Kf6 {[%clk 0:00:07.3]}
35. Ke1 {[%clk 0:00:18.2]} 35... Ra2 {[%clk 0:00:07.1]} 36. Ng4+ {[%clk
0:00:14.6]} 36... Ke7 {[%clk 0:00:07.1]} 37. d5 {[%clk 0:00:14.2]} 37... Ra5
{[%clk 0:00:05.8]} 38. Ne3 {[%clk 0:00:12.1]} 38... Kf6 {[%clk 0:00:04.6]} 39.
d6 {[%clk 0:00:10]} 39... Nd7 {[%clk 0:00:03.9]} 40. Rc4 {[%clk 0:00:06.7]}
40... Ra6 {[%clk 0:00:03.2]} 41. Rd4 {[%clk 0:00:06.9]} 41... Ne5 {[%clk
0:00:02.7]} 42. d7 {[%clk 0:00:05.4]} 42... Nf3+ {[%clk 0:00:02.7]} 43. Kf1
{[%clk 0:00:04.9]} 43... Nxd4 {[%clk 0:00:03.1]} 44. d8=Q+ {[%clk 0:00:05.2]}
44... Ke5 {[%clk 0:00:03.5]} 45. Qh8+ {[%clk 0:00:05.1]} 45... Ke4 {[%clk
0:00:03.3]} 46. Qf6 {[%clk 0:00:04.3]} 46... Nf3 {[%clk 0:00:03.1]} 47. Qg6+
{[%clk 0:00:03.5]} 47... Ke5 {[%clk 0:00:03.1]} 48. Kg2 {[%clk 0:00:03.9]} 48...
g4 {[%clk 0:00:02.9]} 49. Qxg4 {[%clk 0:00:03.9]} 1-0

[Event "Early-Titled-Tuesday-Blitz-October-03-2023"]
[Site "Chess.com"]
[Date "2023.10.03"]
[Round "8"]
[White "koncheto"]
[Black "Ranindu2003"]
[Result "1-0"]
[WhiteElo "2551"]
[BlackElo "2710"]
[TimeControl "180+1"]
[EndTime "9:30:18 PDT"]
[Termination "koncheto won by resignation"]

1. e4 {[%clk 0:02:51.8]} 1... c5 {[%clk 0:02:59.3]} 2. Nf3 {[%clk 0:02:50.9]}
2... Nc6 {[%clk 0:02:59.8]} 3. d4 {[%clk 0:02:48.6]} 3... cxd4 {[%clk
0:02:59.6]} 4. Nxd4 {[%clk 0:02:49.5]} 4... Nf6 {[%clk 0:03:00]} 5. Nc3 {[%clk
0:02:49.5]} 5... e5 {[%clk 0:03:00.8]} 6. Ndb5 {[%clk 0:02:49.3]} 6... d6 {[%clk
0:03:01.4]} 7. Bg5 {[%clk 0:02:49.9]} 7... a6 {[%clk 0:03:01]} 8. Na3 {[%clk
0:02:50.5]} 8... b5 {[%clk 0:03:01.4]} 9. Nd5 {[%clk 0:02:51]} 9... Be7 {[%clk
0:03:01.9]} 10. Bxf6 {[%clk 0:02:51.4]} 10... Bxf6 {[%clk 0:03:02.8]} 11. c4
{[%clk 0:02:52]} 11... b4 {[%clk 0:03:02.6]} 12. Nc2 {[%clk 0:02:52.3]} 12... a5
{[%clk 0:03:03.3]} 13. Be2 {[%clk 0:02:52.2]} 13... g6 {[%clk 0:03:02.8]} 14.
O-O {[%clk 0:02:52.3]} 14... Bg7 {[%clk 0:03:02.1]} 15. Qd3 {[%clk 0:02:46.9]}
15... O-O {[%clk 0:03:00.5]} 16. Rad1 {[%clk 0:02:47]} 16... Be6 {[%clk
0:02:59.7]} 17. Nde3 {[%clk 0:02:41.4]} 17... Qb6 {[%clk 0:02:56]} 18. Kh1
{[%clk 0:02:33.7]} 18... Rad8 {[%clk 0:02:43.7]} 19. g3 {[%clk 0:02:31.2]} 19...
f5 {[%clk 0:02:40.1]} 20. Nd5 {[%clk 0:02:07.1]} 20... Qa7 {[%clk 0:02:30.3]}
21. Bf3 {[%clk 0:01:56.3]} 21... f4 {[%clk 0:02:08.7]} 22. a3 {[%clk 0:01:41.1]}
22... bxa3 {[%clk 0:02:00.7]} 23. Nxa3 {[%clk 0:01:37.6]} 23... g5 {[%clk
0:01:53.4]} 24. Nb5 {[%clk 0:01:35.8]} 24... Qf7 {[%clk 0:01:52.6]} 25. g4
{[%clk 0:01:14.4]} 25... h5 {[%clk 0:01:49.8]} 26. h3 {[%clk 0:01:14.3]} 26...
hxg4 {[%clk 0:01:38.9]} 27. hxg4 {[%clk 0:01:13.7]} 27... Kh7 {[%clk 0:01:39]}
28. Kg2 {[%clk 0:01:10.4]} 28... Kg6 {[%clk 0:01:39]} 29. Rh1 {[%clk 0:01:03.8]}
29... Qd7 {[%clk 0:01:25.5]} 30. Qe2 {[%clk 0:00:49.7]} 30... Nd4 {[%clk
0:01:23.9]} 31. Rxd4 {[%clk 0:00:36.7]} 31... exd4 {[%clk 0:01:24.8]} 32. e5
{[%clk 0:00:37.6]} 32... dxe5 {[%clk 0:01:12.1]} 33. Qd3+ {[%clk 0:00:14.1]}
33... Kf7 {[%clk 0:01:10.6]} 34. Be4 {[%clk 0:00:14.2]} 34... Rh8 {[%clk
0:01:01.6]} 35. Bg6+ {[%clk 0:00:12.8]} 35... Kg8 {[%clk 0:00:52.8]} 36. Bh7+
{[%clk 0:00:11.8]} 36... Kf8 {[%clk 0:00:53.1]} 37. Nbc7 {[%clk 0:00:08.3]}
37... Bxg4 {[%clk 0:00:36.6]} 38. Qg6 {[%clk 0:00:06.7]} 38... Qf7 {[%clk
0:00:31.6]} 39. Qxg5 {[%clk 0:00:06]} 39... Qd7 {[%clk 0:00:17.8]} 40. Nb6
{[%clk 0:00:02.8]} 40... Qc6+ {[%clk 0:00:17.2]} 41. Nbd5 {[%clk 0:00:02.4]}
41... Qd7 {[%clk 0:00:08.9]} 42. Rh4 {[%clk 0:00:02.7]} 42... Be2 {[%clk
0:00:04.3]} 43. Bf5 {[%clk 0:00:02.8]} 43... Qd6 {[%clk 0:00:03.2]} 44. Rxh8+
{[%clk 0:00:02.5]} 44... Bxh8 {[%clk 0:00:04.1]} 45. Ne6+ {[%clk 0:00:02.5]}
45... Ke8 {[%clk 0:00:03.3]} 46. Qg8+ {[%clk 0:00:02.9]} 46... Kd7 {[%clk
0:00:03.7]} 47. Qxd8+ {[%clk 0:00:03.4]} 47... Kc6 {[%clk 0:00:03.6]} 48. Ne7+
{[%clk 0:00:04.3]} 48... Kb7 {[%clk 0:00:02.8]} 49. Qxd6 {[%clk 0:00:04.4]} 1-0

[Event "Early-Titled-Tuesday-Blitz-October-03-2023"]
[Site "Chess.com"]
[Date "2023.10.03"]
[Round "8"]
[White "hurricane7791"]
[Black "Defenstrator"]
[Result "1/2-1/2"]
[WhiteElo "2707"]
[BlackElo "2474"]
[TimeControl "180+1"]
[EndTime "9:30:21 PDT"]
[Termination "Game drawn by repetition"]

1. d4 {[%clk 0:02:53.4]} 1... e6 {[%clk 0:02:57.9]} 2. c4 {[%clk 0:02:53.7]}
2... Bb4+ {[%clk 0:02:55.3]} 3. Nd2 {[%clk 0:02:48.3]} 3... Nf6 {[%clk
0:02:41.7]} 4. Nf3 {[%clk 0:02:47.2]} 4... Nc6 {[%clk 0:02:39.3]} 5. a3 {[%clk
0:02:42.6]} 5... Bf8 {[%clk 0:02:31.8]} 6. e4 {[%clk 0:02:42.4]} 6... d5 {[%clk
0:02:24.4]} 7. cxd5 {[%clk 0:02:41.5]} 7... exd5 {[%clk 0:02:24.8]} 8. e5 {[%clk
0:02:42.4]} 8... Ne4 {[%clk 0:02:22.9]} 9. Bd3 {[%clk 0:02:42.7]} 9... Bf5
{[%clk 0:02:18.1]} 10. Qc2 {[%clk 0:02:42.3]} 10... Nxd2 {[%clk 0:02:12.4]} 11.
Bxd2 {[%clk 0:02:42.4]} 11... Bxd3 {[%clk 0:02:10.8]} 12. Qxd3 {[%clk
0:02:43.3]} 12... g6 {[%clk 0:01:56.9]} 13. O-O {[%clk 0:02:40.4]} 13... Bg7
{[%clk 0:01:57.4]} 14. h4 {[%clk 0:02:31.6]} 14... h6 {[%clk 0:01:47.5]} 15. h5
{[%clk 0:02:28.9]} 15... g5 {[%clk 0:01:44.9]} 16. b4 {[%clk 0:02:28.5]} 16...
g4 {[%clk 0:01:24]} 17. Nh2 {[%clk 0:02:20.2]} 17... Qh4 {[%clk 0:01:24.1]} 18.
b5 {[%clk 0:02:15.4]} 18... Ne7 {[%clk 0:01:14.2]} 19. Qg3 {[%clk 0:02:03]}
19... Qxh5 {[%clk 0:01:07.8]} 20. Nxg4 {[%clk 0:02:02.7]} 20... O-O-O {[%clk
0:00:45.9]} 21. Rac1 {[%clk 0:01:59.9]} 21... Nf5 {[%clk 0:00:37]} 22. Qf4
{[%clk 0:01:58.5]} 22... Rhg8 {[%clk 0:00:25.2]} 23. e6 {[%clk 0:01:24.5]} 23...
Nd6 {[%clk 0:00:25.8]} 24. Bb4 {[%clk 0:01:22.4]} 24... Kb8 {[%clk 0:00:09.2]}
25. Rxc7 {[%clk 0:01:15.5]} 25... Kxc7 {[%clk 0:00:08.7]} 26. Bxd6+ {[%clk
0:01:15.3]} 26... Kb6 {[%clk 0:00:07.8]} 27. Bc7+ {[%clk 0:01:12.7]} 27... Kxb5
{[%clk 0:00:07.7]} 28. Bxd8 {[%clk 0:01:02.1]} 28... Rxd8 {[%clk 0:00:08.1]} 29.
e7 {[%clk 0:01:02.3]} 29... Re8 {[%clk 0:00:06.7]} 30. Rb1+ {[%clk 0:00:59.5]}
30... Ka6 {[%clk 0:00:06.1]} 31. Qc7 {[%clk 0:00:38.3]} 31... b6 {[%clk
0:00:06.6]} 32. Qd7 {[%clk 0:00:38]} 32... Qg6 {[%clk 0:00:05.3]} 33. Qb5+
{[%clk 0:00:33.4]} 33... Kb7 {[%clk 0:00:06.2]} 34. Qxd5+ {[%clk 0:00:28.8]}
34... Qc6 {[%clk 0:00:05.3]} 35. Qxf7 {[%clk 0:00:26.8]} 35... Bxd4 {[%clk
0:00:06.1]} 36. Rd1 {[%clk 0:00:25.4]} 36... Bc5 {[%clk 0:00:05.6]} 37. Re1
{[%clk 0:00:23.5]} 37... Qd7 {[%clk 0:00:05.3]} 38. Nf6 {[%clk 0:00:23.5]} 38...
Rxe7 {[%clk 0:00:04]} 39. Rxe7 {[%clk 0:00:19.2]} 39... Qxe7 {[%clk 0:00:03.9]}
40. Qd5+ {[%clk 0:00:19.6]} 40... Ka6 {[%clk 0:00:03.2]} 41. Ne4 {[%clk
0:00:20.2]} 41... Ka5 {[%clk 0:00:02.3]} 42. g3 {[%clk 0:00:20.2]} 42... Ka4
{[%clk 0:00:01.8]} 43. Qc4+ {[%clk 0:00:20.5]} 43... Kxa3 {[%clk 0:00:02.6]} 44.
Kg2 {[%clk 0:00:17.6]} 44... Qe5 {[%clk 0:00:02.7]} 45. Nd2 {[%clk 0:00:16.9]}
45... Qb2 {[%clk 0:00:02.4]} 46. Qd3+ {[%clk 0:00:15.3]} 46... Ka4 {[%clk
0:00:02.6]} 47. Qa6+ {[%clk 0:00:14.9]} 47... Kb4 {[%clk 0:00:03.3]} 48. Qc4+
{[%clk 0:00:15.1]} 48... Ka3 {[%clk 0:00:03.9]} 49. Qa6+ {[%clk 0:00:15.4]}
49... Kb4 {[%clk 0:00:04.8]} 50. Qc4+ {[%clk 0:00:15.8]} 50... Ka3 {[%clk
0:00:05.7]} 1/2-1/2